bitfinex-derivatives/quotes_BTCF0:USTF0_20250620
["timestamp","ask_amount","ask_price","bid_price","bid_amount"]
[1750461532065,0.60399123,103200.0,103190.0,0.23157327]
[1750461533266,0.52684013,103200.0,103190.0,0.23157327]
[1750461533467,0.5534466,103200.0,103190.0,0.23157327]
[1750461536868,0.6305977,103200.0,103190.0,0.23157327]
[1750461538362,0.63049465,103200.0,103190.0,0.23157327]
[1750461540272,0.53699465,103200.0,103190.0,0.59237327]
[1750461540472,0.53699465,103200.0,103190.0,0.65307327]
[1750461544165,0.53699465,103200.0,103190.0,0.29227327]
[1750461545174,0.56789465,103200.0,103190.0,0.29227327]
[1750461545980,0.59989465,103200.0,103190.0,0.29227327]
[1750461546175,0.85833969,103200.0,103190.0,0.29227327]
[1750461547676,0.82633969,103200.0,103190.0,0.29227327]
[1750461548380,0.56789465,103200.0,103190.0,0.29227327]
[1750461549475,0.82633969,103200.0,103190.0,0.29227327]
[1750461549678,0.1937992,103190.0,103180.0,0.5554104]
[1750461549884,0.5560577,103190.0,103180.0,0.6817183]
[1750461550080,0.5560577,103190.0,103180.0,0.7130183]
[1750461550478,0.5560577,103190.0,103180.0,0.7134183]
[1750461551483,0.5570577,103190.0,103180.0,0.7144183]
[1750461551682,0.5590577,103190.0,103180.0,0.7154183]
[1750461552986,1.0537577,103190.0,103180.0,0.7154183]
[1750461553883,1.0537577,103190.0,103180.0,0.3546183]
[1750461554079,0.79531266,103190.0,103180.0,0.3546183]
[1750461554279,1.0537577,103190.0,103180.0,0.7154183]
[1750461554487,0.60151346,103190.0,103180.0,0.97386334]
[1750461554691,0.52430647,103190.0,103180.0,0.97386334]
[1750461554887,0.58221051,103190.0,103180.0,0.97386334]
[1750461555085,0.52430647,103190.0,103180.0,0.97386334]
[1750461555294,0.58220951,103190.0,103180.0,0.7154183]
[1750461555591,0.58220951,103190.0,103180.0,0.97386334]
[1750461558694,0.08750951,103190.0,103180.0,0.97386334]
[1750461559985,0.08750951,103190.0,103180.0,0.97803741]
[1750461562502,0.08750951,103190.0,103180.0,0.71959237]
[1750461562797,0.08750951,103190.0,103180.0,0.97803741]
[1750461562999,0.08750951,103190.0,103180.0,0.97386334]
[1750461563599,0.02960647,103190.0,103180.0,0.97386334]
[1750461565901,0.02960647,103190.0,103180.0,1.72818334]
[1750461569103,0.02960647,103190.0,103180.0,1.4697383]
[1750461569298,0.02960647,103190.0,103180.0,1.72818334]
[1750461575010,0.02960647,103190.0,103180.0,1.76138334]
[1750461578499,0.03060647,103190.0,103180.0,1.76438334]
[1750461578704,0.03060647,103190.0,103180.0,2.12518334]
[1750461579205,0.02860647,103190.0,103180.0,2.12418334]
[1750461579513,0.02860647,103190.0,103180.0,2.12718334]
[1750461580211,0.02860647,103190.0,103180.0,2.12618334]
[1750461584301,0.02860647,103190.0,103180.0,2.13035741]
[1750461584502,0.02860647,103190.0,103180.0,1.87191237]
[1750461584815,0.02860647,103190.0,103180.0,2.13035741]
[1750461585310,0.02860647,103190.0,103180.0,2.12618334]
[1750461588310,0.02860647,103190.0,103180.0,2.13035741]
[1750461590418,0.02860647,103190.0,103180.0,2.12618334]
[1750461591519,0.02860647,103190.0,103180.0,2.13035741]
[1750461592429,0.02860647,103190.0,103180.0,2.12618334]
[1750461592720,0.02860647,103190.0,103180.0,1.40458334]
[1750461592920,0.02860647,103190.0,103180.0,2.12618334]
[1750461596630,0.02939239,103190.0,103180.0,2.12618334]
[1750461598828,0.02939239,103190.0,103180.0,2.38445054]
[1750461600629,0.02939239,103190.0,103180.0,2.38373054]
[1750461604734,0.19195714,103200.0,103190.0,0.1937988]
[1750461604930,0.19195714,103200.0,103190.0,0.90855492]
[1750461605330,0.26045773,103210.0,103200.0,0.19378]
[1750461605530,0.51881385,103210.0,103200.0,1.56609612]
[1750461606835,0.52081385,103210.0,103200.0,1.56709612]
[1750461607836,0.52281385,103210.0,103200.0,1.56809612]
[1750461608037,0.71657495,103210.0,103200.0,1.56809612]
[1750461608237,0.52281385,103210.0,103200.0,1.56809612]
[1750461613644,0.52281385,103210.0,103200.0,1.30974]
[1750461613841,0.52281385,103210.0,103200.0,1.56809612]
[1750461614242,0.71657505,103210.0,103200.0,1.56809612]
[1750461614847,0.63936806,103210.0,103200.0,1.56809612]
[1750461615742,0.63936806,103210.0,103200.0,1.59919612]
[1750461616047,0.44560686,103210.0,103200.0,1.59919612]
[1750461616848,0.47276598,103210.0,103200.0,1.59919612]
[1750461617649,0.21440986,103210.0,103200.0,1.59919612]
[1750461617851,0.44116598,103210.0,103200.0,1.66199612]
[1750461618544,0.63492718,103210.0,103200.0,1.66199612]
[1750461623560,0.63492718,103210.0,103200.0,1.40364]
[1750461624662,0.71213417,103210.0,103200.0,1.40364]
[1750461625761,0.56892718,103210.0,103200.0,1.66199612]
[1750461627762,0.37516598,103210.0,103200.0,1.66199612]
[1750461628259,0.56892708,103210.0,103200.0,1.66199612]
[1750461629771,0.64613407,103210.0,103200.0,1.66199612]
[1750461630257,0.56892708,103210.0,103200.0,1.66199612]
[1750461631666,0.64613407,103210.0,103200.0,1.66199612]
[1750461633066,0.56892708,103210.0,103200.0,1.66199612]
[1750461637171,0.64613407,103210.0,103200.0,0.65048]
[1750461637372,0.64613407,103210.0,103200.0,1.25692]
[1750461638170,0.38777795,103210.0,103200.0,1.25692]
[1750461638358,0.64613407,103210.0,103200.0,1.51527612]
[1750461640277,0.56892708,103210.0,103200.0,1.51527612]
[1750461642474,0.56892708,103210.0,103200.0,1.25692]
[1750461643175,0.64613407,103210.0,103200.0,0.89612]
[1750461643373,0.64613407,103210.0,103200.0,1.25692]
[1750461645376,0.64613407,103210.0,103200.0,1.66047612]
[1750461645674,0.38777795,103210.0,103200.0,1.66047612]
[1750461645876,0.64613407,103210.0,103200.0,1.66047612]
[1750461656079,0.45237297,103210.0,103200.0,1.66047612]
[1750461656280,0.64613417,103210.0,103200.0,1.66047612]
[1750461657987,0.64613417,103210.0,103200.0,2.02127612]
[1750461658778,0.1844215,103210.0,103200.0,2.27963224]
[1750461658985,0.08912815,103210.0,103200.0,2.27963224]
[1750461659282,0.08912815,103210.0,103200.0,1.76292]
[1750461659584,0.08912815,103210.0,103200.0,2.28380631]
[1750461659977,0.48127634,103210.0,103200.0,1.76545407]
[1750461660278,0.53822715,103210.0,103200.0,1.76445407]
[1750461660480,0.55986972,103210.0,103200.0,1.76168]
[1750461664681,0.27435448,103210.0,103200.0,1.76168]
[1750461664887,0.5327106,103210.0,103200.0,1.76168]
[1750461665988,0.27435448,103210.0,103200.0,1.76168]
[1750461666191,0.5327106,103210.0,103200.0,2.02003612]
[1750461667586,0.5327106,103210.0,103200.0,2.02421019]
[1750461667781,0.3389495,103210.0,103200.0,2.02421019]
[1750461668487,0.3389495,103210.0,103200.0,2.02003612]
[1750461668688,0.08059338,103210.0,103200.0,2.02003612]
[1750461668889,0.3389495,103210.0,103200.0,1.76168]
[1750461669088,0.3389495,103210.0,103200.0,2.02003612]
[1750461669491,0.3389495,103210.0,103200.0,2.02421019]
[1750461669695,0.08059338,103210.0,103200.0,2.28256631]
[1750461671292,0.3389495,103210.0,103200.0,2.28256631]
[1750461672492,0.3389495,103210.0,103200.0,2.02003612]
[1750461673794,0.3389495,103210.0,103200.0,1.76168]
[1750461673996,0.3389495,103210.0,103200.0,2.02003612]
[1750461676798,0.08059338,103210.0,103200.0,2.27839224]
[1750461676997,0.39688126,103210.0,103200.0,2.27839224]
[1750461677185,0.13852514,103210.0,103200.0,2.27839224]
[1750461679398,0.39688126,103210.0,103200.0,2.27839224]
[1750461680996,0.3389495,103210.0,103200.0,2.27839224]
[1750461681198,0.13852768,103210.0,103200.0,2.27839224]
[1750461681400,0.3968838,103210.0,103200.0,2.27839224]
[1750461683896,0.3968838,103210.0,103200.0,2.28256631]
[1750461684198,0.3389495,103210.0,103200.0,2.28256631]
[1750461684398,0.39689071,103210.0,103200.0,1.76585407]
[1750461684696,0.3389495,103210.0,103200.0,1.76168]
[1750461684901,0.3389495,103210.0,103200.0,2.27839224]
[1750461685594,0.39689349,103210.0,103200.0,2.27839224]
[1750461685800,0.3389495,103210.0,103200.0,2.27839224]
[1750461686196,0.08059338,103210.0,103200.0,2.27839224]
[1750461686399,0.3389495,103210.0,103200.0,2.27839224]
[1750461688602,0.08059338,103210.0,103200.0,2.27839224]
[1750461688800,0.3389495,103210.0,103200.0,2.27839224]
[1750461689799,0.3389495,103210.0,103200.0,2.02003612]
[1750461691505,0.08059338,103210.0,103200.0,2.02003612]
[1750461691699,0.3389495,103210.0,103200.0,2.02003612]
[1750461692899,0.36650216,103210.0,103200.0,2.02003612]
[1750461693607,0.36650216,103210.0,103200.0,1.29843612]
[1750461693809,0.36650216,103210.0,103200.0,2.02003612]
[1750461694903,0.28790878,103210.0,103200.0,2.02003612]
[1750461703220,0.28790878,103210.0,103200.0,1.91759224]
[1750461703416,0.28790878,103210.0,103200.0,2.27839224]
[1750461705216,0.28790878,103210.0,103200.0,1.76168]
[1750461705419,0.28790878,103210.0,103200.0,2.27839224]
[1750461706318,0.28790878,103210.0,103200.0,2.02003612]
[1750461706511,0.28790878,103210.0,103200.0,1.26903612]
[1750461706713,0.28790878,103210.0,103200.0,2.01843612]
[1750461708122,0.28790878,103210.0,103200.0,1.76008]
[1750461708323,0.28790878,103210.0,103200.0,2.01843612]
[1750461709918,0.28790878,103210.0,103200.0,1.01068]
[1750461710225,0.48166988,103210.0,103200.0,1.72856]
[1750461710521,0.51346988,103210.0,103200.0,1.72896]
[1750461710722,0.54416988,103210.0,103200.0,1.72856]
[1750461711324,0.54416988,103210.0,103200.0,1.72896]
[1750461711522,0.28581376,103210.0,103200.0,1.72896]
[1750461711722,0.54416988,103210.0,103200.0,1.98731612]
[1750461712022,0.54416988,103210.0,103200.0,2.01971612]
[1750461712322,0.35040878,103210.0,103200.0,2.01971612]
[1750461712622,0.62137687,103210.0,103200.0,2.01971612]
[1750461713023,0.36302075,103210.0,103200.0,2.01971612]
[1750461713223,0.62137687,103210.0,103200.0,2.01971612]
[1750461714229,0.62137687,103210.0,103200.0,1.76128]
[1750461714420,0.65417687,103210.0,103200.0,1.76128]
[1750461714724,0.65417687,103210.0,103200.0,1.76088]
[1750461715023,0.65417687,103210.0,103200.0,1.76128]
[1750461715519,0.65417687,103210.0,103200.0,0.29048]
[1750461715725,0.65417687,103210.0,103200.0,1.36808]
[1750461718415,0.62137687,103210.0,103200.0,1.39938]
[1750461719227,0.51346988,103210.0,103200.0,1.39938]
[1750461722730,0.59067687,103210.0,103200.0,1.39938]
[1750461723429,0.51346988,103210.0,103200.0,1.39938]
[1750461723830,0.51346988,103210.0,103200.0,1.65773612]
[1750461724328,0.48166988,103210.0,103200.0,1.65773612]
[1750461726933,0.22331376,103210.0,103200.0,1.65773612]
[1750461727135,0.48166988,103210.0,103200.0,1.65773612]
[1750461727932,0.28790878,103210.0,103200.0,1.65773612]
[1750461728137,0.48166978,103210.0,103200.0,1.65773612]
[1750461729040,0.02955266,103210.0,103200.0,1.91609224]
[1750461729437,0.08752684,103210.0,103200.0,1.92026631]
[1750461730143,0.08752684,103210.0,103200.0,1.40355407]
[1750461730540,0.08752684,103210.0,103200.0,1.92026631]
[1750461730942,0.08652684,103210.0,103200.0,1.91926631]
[1750461731144,0.08752684,103210.0,103200.0,1.92226631]
[1750461731646,0.08652684,103210.0,103200.0,1.92326631]
[1750461732046,0.08652684,103210.0,103200.0,1.93315684]
[1750461732747,0.08652684,103210.0,103200.0,1.4164446]
[1750461732943,0.02855266,103210.0,103200.0,1.93315684]
[1750461741651,0.02855266,103210.0,103200.0,1.4164446]
[1750461741854,0.02855266,103210.0,103200.0,1.93315684]
[1750461742149,0.02819919,103210.0,103200.0,1.93315684]
[1750461743137,0.00394189,103210.0,103200.0,1.93315684]
[1750461744450,9e-08,103210.0,103200.0,2.19151296]
[1750461744852,9e-08,103210.0,103200.0,1.93315684]
[1750461746254,9e-08,103210.0,103200.0,2.38530496]
[1750461748652,9e-08,103210.0,103200.0,2.38113089]
[1750461753555,9e-08,103210.0,103200.0,2.38513089]
[1750461753758,9e-08,103210.0,103200.0,1.86841865]
[1750461754563,9e-08,103220.0,103210.0,0.1937612]
[1750461754758,9e-08,103220.0,103210.0,2.87345031]
[1750461755059,9e-08,103220.0,103210.0,3.06721831]
[1750461755257,9e-08,103220.0,103210.0,2.75721831]
[1750461755458,0.05897418,103250.0,103240.0,0.1937048]
[1750461755657,0.001,103250.0,103240.0,2.19737874]
[1750461755856,0.001,103250.0,103240.0,2.29177874]
[1750461756461,0.02775931,103250.0,103240.0,2.29177874]
[1750461756765,0.23188473,103270.0,103260.0,0.1936673]
[1750461757058,0.23188473,103270.0,103260.0,2.17957954]
[1750461757455,0.23188473,103270.0,103260.0,1.6628673]
[1750461757655,0.23188473,103270.0,103260.0,1.95242342]
[1750461757850,0.23188473,103270.0,103260.0,1.6940673]
[1750461758158,0.49224085,103270.0,103260.0,1.95242342]
[1750461758561,0.23388473,103270.0,103260.0,1.95242342]
[1750461758755,0.23688473,103270.0,103260.0,1.95342342]
[1750461759047,0.23688473,103270.0,103260.0,1.95306412]
[1750461760860,0.23688473,103270.0,103260.0,1.93965534]
[1750461761076,0.23688473,103270.0,103260.0,1.68165852]
[1750461764660,0.23688473,103270.0,103260.0,0.96005852]
[1750461764864,0.23688473,103270.0,103260.0,1.68165852]
[1750461765363,0.23688473,103270.0,103260.0,1.93965534]
[1750461765658,0.23688473,103270.0,103260.0,1.68165852]
[1750461765864,0.23688473,103270.0,103260.0,1.93965534]
[1750461768668,0.26476677,103270.0,103260.0,1.93965534]
[1750461769674,0.26476677,103270.0,103260.0,1.93893534]
[1750461769877,0.26894084,103270.0,103260.0,1.93893534]
[1750461770572,0.26894084,103270.0,103260.0,1.9294881]
[1750461770872,0.26894084,103270.0,103260.0,1.67149128]
[1750461771073,0.26894084,103270.0,103260.0,1.9294881]
[1750461772074,0.11085061,103270.0,103260.0,1.9294881]
[1750461772374,0.11085061,103270.0,103260.0,1.9617881]
[1750461773074,0.11085061,103270.0,103260.0,1.9942881]
[1750461773468,0.11085061,103270.0,103260.0,1.73625128]
[1750461774674,0.11085061,103270.0,103260.0,1.9942481]
[1750461775475,0.11085061,103270.0,103260.0,1.2474081]
[1750461775666,0.11085061,103270.0,103260.0,1.9942481]
[1750461777769,0.11085061,103270.0,103260.0,1.9942081]
[1750461778169,0.11085061,103270.0,103260.0,2.0249081]
[1750461778972,0.36885852,103270.0,103260.0,2.02491919]
[1750461779478,0.32696402,103270.0,103260.0,2.02491919]
[1750461779778,0.32696402,103270.0,103260.0,1.99421919]
[1750461780572,0.32696402,103270.0,103260.0,2.02681919]
[1750461782172,0.32278995,103270.0,103260.0,2.02681919]
[1750461783083,0.29506402,103270.0,103260.0,2.02681919]
[1750461784083,0.29506402,103270.0,103260.0,1.76881128]
[1750461784271,0.37227101,103270.0,103260.0,2.02681919]
[1750461785784,0.37227101,103270.0,103260.0,1.28001919]
[1750461785981,0.37227101,103270.0,103260.0,2.02673919]
[1750461791280,0.36809694,103270.0,103260.0,2.02673919]
[1750461792293,0.37227101,103270.0,103260.0,2.02673919]
[1750461794599,0.1142631,103270.0,103260.0,2.02673919]
[1750461794802,0.37227101,103270.0,103260.0,2.02673919]
[1750461797795,0.29506402,103270.0,103260.0,2.02673919]
[1750461798901,0.29506402,103270.0,103260.0,1.75094006]
[1750461799096,0.29506402,103270.0,103260.0,2.00894797]
[1750461799598,0.37227101,103270.0,103260.0,2.00894797]
[1750461799798,0.29506402,103270.0,103260.0,2.00894797]
[1750461800805,0.29506402,103270.0,103260.0,1.26222797]
[1750461801104,0.29506402,103270.0,103260.0,2.00854797]
[1750461802699,0.29506402,103270.0,103260.0,1.75054006]
[1750461803003,0.29506402,103270.0,103260.0,2.00854797]
[1750461804002,0.56591951,103270.0,103260.0,1.38970006]
[1750461804200,0.52131252,103270.0,103260.0,1.39010006]
[1750461804403,0.77932043,103270.0,103260.0,0.64382006]
[1750461804596,0.85652742,103270.0,103260.0,1.39010006]
[1750461804801,0.59851951,103270.0,103260.0,1.38970006]
[1750461805003,0.59851951,103270.0,103260.0,1.39010006]
[1750461808207,0.40487101,103270.0,103260.0,1.64810797]
[1750461808408,0.59851951,103270.0,103260.0,1.64810797]
[1750461808610,0.59851951,103270.0,103260.0,0.64382006]
[1750461808810,0.40487101,103270.0,103260.0,1.39006006]
[1750461809209,0.59851951,103270.0,103260.0,1.39006006]
[1750461809409,0.59851951,103270.0,103260.0,1.64806797]
[1750461809908,0.56591951,103270.0,103260.0,1.64806797]
[1750461812817,0.56291951,103270.0,103260.0,1.64706797]
[1750461813017,0.56691951,103270.0,103260.0,1.64806797]
[1750461813519,0.56491951,103270.0,103260.0,1.64806797]
[1750461813706,0.56691951,103270.0,103260.0,1.64806797]
[1750461817516,0.56691951,103270.0,103260.0,1.39006006]
[1750461822432,1.37940743,103270.0,103260.0,0.0014]
[1750461822730,2.21332044,103270.0,103260.0,0.1946673]
[1750461823023,1.93772044,103270.0,103260.0,0.1950673]
[1750461823218,1.67980296,103270.0,103260.0,0.2563673]
[1750461823419,0.88360295,103270.0,103260.0,0.2563673]
[1750461823618,1.14170129,103270.0,103260.0,0.2563673]
[1750461823819,1.14170129,103270.0,103260.0,0.2867673]
[1750461824118,1.23823067,103270.0,103260.0,0.2867673]
[1750461825527,0.58633233,103270.0,103260.0,0.2867673]
[1750461825728,0.23170461,103270.0,103260.0,0.2867673]
[1750461825922,0.56719034,103270.0,103260.0,0.6475673]
[1750461826229,0.56719034,103270.0,103260.0,0.2867673]
[1750461826629,0.56719034,103270.0,103260.0,0.6475673]
[1750461827722,0.48980295,103270.0,103260.0,0.6475673]
[1750461828926,0.48580295,103270.0,103260.0,0.6465673]
[1750461829128,0.49080295,103270.0,103260.0,0.6475673]
[1750461829422,0.03905611,103270.0,103260.0,1.32440237]
[1750461829824,0.03488204,103270.0,103260.0,1.32440237]
[1750461830524,0.15426589,103280.0,103270.0,0.1936485]
[1750461830720,0.07840049,103280.0,103270.0,1.73898518]
[1750461830930,0.98450284,103290.0,103280.0,0.1936297]
[1750461831235,0.97490983,103290.0,103280.0,0.98880804]
[1750461831924,1.05410527,103290.0,103280.0,0.9723097]
[1750461832125,1.08490527,103290.0,103280.0,1.3331097]
[1750461832526,1.08490527,103290.0,103280.0,1.3335097]
[1750461832731,1.08690527,103290.0,103280.0,1.3335097]
[1750461832939,1.0867911,103290.0,103280.0,0.9727097]
[1750461833232,1.0857911,103290.0,103280.0,0.9727097]
[1750461833439,1.1210911,103290.0,103280.0,0.2270297]
[1750461833738,1.1210911,103290.0,103280.0,0.8294297]
[1750461834434,1.1210911,103290.0,103280.0,0.2270297]
[1750461834743,0.1936297,103280.0,103270.0,0.74564]
[1750461834937,0.90811387,103280.0,103270.0,0.9392884]
[1750461835838,0.90811387,103280.0,103270.0,0.1946484]
[1750461836143,0.91011387,103280.0,103270.0,0.1950484]
[1750461837139,1.10376987,103280.0,103270.0,0.001]
[1750461837933,1.10376987,103280.0,103270.0,0.0014]
[1750461839038,0.89057925,103280.0,103270.0,0.0014]
[1750461839340,1.08420895,103280.0,103270.0,0.0014]
[1750461840738,1.08420895,103280.0,103270.0,0.1950485]
[1750461841036,1.16154041,103280.0,103270.0,0.1950485]
[1750461842530,1.18925864,103280.0,103270.0,0.1950485]
[1750461843537,1.18925864,103280.0,103270.0,0.2257485]
[1750461844738,0.93127447,103280.0,103270.0,0.2257485]
[1750461844931,1.19343271,103280.0,103270.0,0.2257485]
[1750461845237,0.92363763,103280.0,103270.0,0.2257485]
[1750461845442,0.56283763,103280.0,103270.0,0.2257485]
[1750461845743,0.56283763,103280.0,103270.0,0.2905485]
[1750461849545,0.56283763,103280.0,103270.0,0.6513485]
[1750461850144,0.92363763,103280.0,103270.0,0.2905485]
[1750461850335,0.92363763,103280.0,103270.0,0.0321]
[1750461850537,0.95523763,103280.0,103270.0,0.2257486]
[1750461850738,0.95523763,103280.0,103270.0,0.001]
[1750461850739,1.18149363,103280.0,103270.0,0.001]
[1750461850944,0.1936673,103260.0,103250.0,0.7919566]
[1750461851143,1.09815387,103260.0,103250.0,0.17338]
[1750461851341,1.23968821,103260.0,103250.0,0.0301]
[1750461851643,1.23968821,103260.0,103250.0,0.0305]
[1750461851844,1.23968821,103260.0,103250.0,0.0301]
[1750461852139,1.23968821,103260.0,103250.0,0.0305]
[1750461852343,1.23968821,103260.0,103250.0,0.0325]
[1750461852544,1.24068821,103260.0,103250.0,0.0355]
[1750461853042,0.22338553,103260.0,103250.0,0.2578861]
[1750461854138,0.22538553,103260.0,103250.0,0.6166861]
[1750461854443,0.22538553,103260.0,103250.0,0.2558861]
[1750461854632,0.4833697,103260.0,103250.0,0.2558861]
[1750461855341,0.4833697,103260.0,103250.0,0.6166861]
[1750461856646,0.22538553,103260.0,103250.0,0.6166861]
[1750461856847,0.4833697,103260.0,103250.0,0.6166861]
[1750461857845,0.4813697,103260.0,103250.0,0.6166861]
[1750461858144,0.4803697,103260.0,103250.0,0.6156861]
[1750461859446,0.22238553,103260.0,103250.0,0.6156861]
[1750461859751,0.02871823,103260.0,103250.0,0.87367027]
[1750461860044,0.08668599,103260.0,103250.0,0.87367027]
[1750461860545,0.28035329,103260.0,103250.0,0.87367027]
[1750461860746,0.28035329,103260.0,103250.0,0.6156861]
[1750461860947,0.08668599,103260.0,103250.0,0.6156861]
[1750461861147,0.09086006,103260.0,103250.0,0.6156861]
[1750461862546,0.09086006,103260.0,103250.0,0.87367027]
[1750461863244,0.08668599,103260.0,103250.0,0.87367027]
[1750461863944,0.08668599,103260.0,103250.0,0.6156861]
[1750461864242,0.09086006,103260.0,103250.0,0.87367027]
[1750461870548,0.09086006,103260.0,103250.0,0.90617027]
[1750461870954,0.09086006,103260.0,103250.0,0.90817027]
[1750461871155,0.08986006,103260.0,103250.0,0.90817027]
[1750461871345,0.09086006,103260.0,103250.0,0.91017027]
[1750461871550,0.0328923,103260.0,103250.0,0.91017027]
[1750461871750,0.00517407,103260.0,103250.0,0.91017027]
[1750461871948,0.0328923,103260.0,103250.0,0.91017027]
[1750461872349,0.09086006,103260.0,103250.0,0.91017027]
[1750461872554,0.0328923,103260.0,103250.0,0.91017027]
[1750461874060,0.0328923,103260.0,103250.0,0.6521861]
[1750461874264,0.0328923,103260.0,103250.0,0.91017027]
[1750461878360,0.0328923,103260.0,103250.0,0.6521861]
[1750461878660,0.0328923,103260.0,103250.0,0.91017027]
[1750461882266,1e-07,103260.0,103250.0,0.91017027]
[1750461882466,0.00417417,103260.0,103250.0,0.91017027]
[1750461883166,0.00417417,103260.0,103250.0,1.10386627]
[1750461887069,0.00417417,103260.0,103250.0,0.91017027]
[1750461887670,0.00417417,103260.0,103250.0,1.27097027]
[1750461888171,0.00417417,103260.0,103250.0,0.54937027]
[1750461888469,0.00417417,103260.0,103250.0,1.27097027]
[1750461891765,7e-08,103260.0,103250.0,1.52895444]
[1750461891966,7e-08,103260.0,103250.0,1.27097027]
[1750461893866,7e-08,103260.0,103250.0,2.01593027]
[1750461894770,7e-08,103260.0,103250.0,1.7579461]
[1750461894975,7e-08,103260.0,103250.0,2.01593027]
[1750461909684,7e-08,103260.0,103250.0,1.29433027]
[1750461909986,7e-08,103260.0,103250.0,2.01593027]
[1750461912877,7e-08,103260.0,103250.0,2.2739052]
[1750461913281,7e-08,103260.0,103250.0,2.2735052]
[1750461913489,7e-08,103260.0,103250.0,2.2739052]
[1750461913789,7e-08,103260.0,103250.0,2.01552565]
[1750461913981,7e-08,103260.0,103250.0,2.01592565]
[1750461914786,7e-08,103260.0,103250.0,2.01594768]
[1750461918188,7e-08,103260.0,103250.0,1.7579461]
[1750461918393,7e-08,103260.0,103250.0,2.01594768]
[1750461920496,7e-08,103260.0,103250.0,1.7578261]
[1750461920699,0.12236783,103260.0,103250.0,2.01542768]
[1750461920896,0.12236783,103260.0,103250.0,2.01582768]
[1750461922296,0.12236783,103260.0,103250.0,1.98332768]
[1750461922497,0.15466783,103260.0,103250.0,1.98332768]
[1750461923302,0.15466783,103260.0,103250.0,1.95258768]
[1750461923700,0.15466783,103260.0,103250.0,1.95218768]
[1750461923902,0.15466783,103260.0,103250.0,1.95258768]
[1750461925107,0.09006783,103260.0,103250.0,2.01558768]
[1750461927807,0.05796783,103260.0,103250.0,2.01558768]
[1750461928208,7e-08,103260.0,103250.0,2.01558768]
[1750461936812,7e-08,103260.0,103250.0,2.01558246]
[1750461937311,7e-08,103260.0,103250.0,2.27357882]
[1750461937913,7e-08,103260.0,103250.0,2.01558246]
[1750461942204,0.19543102,103270.0,103260.0,0.1936673]
[1750461942409,0.19543102,103270.0,103260.0,0.92495999]
[1750461942610,0.16453102,103270.0,103260.0,0.92495999]
[1750461943615,0.16653102,103270.0,103260.0,0.92495999]
[1750461944017,0.16653102,103270.0,103260.0,1.18295635]
[1750461944317,0.16653102,103270.0,103260.0,0.66696363]
[1750461944515,0.02984414,103270.0,103260.0,0.92495999]
[1750461944717,0.2878405,103270.0,103260.0,1.06795999]
[1750461945217,0.2888405,103270.0,103260.0,1.06795999]
[1750461947318,0.03084414,103270.0,103260.0,1.06795999]
[1750461947519,0.2888405,103270.0,103260.0,1.06795999]
[1750461949422,0.29301457,103270.0,103260.0,1.06795999]
[1750461953923,0.29301457,103270.0,103260.0,1.42875999]
[1750461955526,0.29301457,103270.0,103260.0,1.68675635]
[1750461956126,0.29301457,103270.0,103260.0,1.42875999]
[1750461958027,0.03501821,103270.0,103260.0,1.42875999]
[1750461958324,0.29301457,103270.0,103260.0,1.68675635]
[1750461958730,0.29301457,103270.0,103260.0,1.17076363]
[1750461959026,0.29301457,103270.0,103260.0,1.68675635]
[1750461959423,0.29301457,103270.0,103260.0,1.17076363]
[1750461959618,0.29301457,103270.0,103260.0,1.68675635]
[1750461962421,0.29301457,103270.0,103260.0,1.42875999]
[1750461962622,0.35112535,103270.0,103260.0,1.42875999]
[1750461963233,0.35112535,103270.0,103260.0,1.17076363]
[1750461963426,0.35112535,103270.0,103260.0,1.42875999]
[1750461963630,0.29301457,103270.0,103260.0,1.42875999]
[1750461965426,0.29301457,103270.0,103260.0,1.68675635]
[1750461965626,0.03501821,103270.0,103260.0,1.68675635]
[1750461967721,0.09312716,103270.0,103260.0,1.68675635]
[1750461967927,0.03501821,103270.0,103260.0,1.68675635]
[1750461968437,0.35112379,103270.0,103260.0,1.68675635]
[1750461968840,0.29301457,103270.0,103260.0,1.68675635]
[1750461971029,0.29301457,103270.0,103260.0,1.17076363]
[1750461971231,0.29301457,103270.0,103260.0,1.42875999]
[1750461971938,0.03501821,103270.0,103260.0,1.42875999]
[1750461972129,0.29301457,103270.0,103260.0,1.42875999]
[1750461976942,0.29301457,103270.0,103260.0,1.17076363]
[1750461977442,0.29301457,103270.0,103260.0,1.42875999]
[1750461977630,0.29301457,103270.0,103260.0,1.68675635]
[1750461979143,0.29301457,103270.0,103260.0,1.42875999]
[1750461980132,0.29301457,103270.0,103260.0,0.70715999]
[1750461980443,0.29301457,103270.0,103260.0,1.42875999]
[1750461982443,0.03501821,103270.0,103260.0,1.42875999]
[1750461982643,0.29301457,103270.0,103260.0,1.42875999]
[1750461984846,0.03501821,103270.0,103260.0,1.42875999]
[1750461985146,0.03501821,103270.0,103260.0,1.68675635]
[1750461985744,0.09313165,103270.0,103260.0,1.68675635]
[1750461987454,0.09113165,103270.0,103260.0,1.68675635]
[1750461987643,0.09113165,103270.0,103260.0,1.68775635]
[1750461988647,0.09013165,103270.0,103260.0,1.68875635]
[1750461990457,0.03201821,103270.0,103260.0,1.68875635]
[1750461990953,0.09013165,103270.0,103260.0,1.68875635]
[1750461991150,0.03201821,103270.0,103260.0,1.68875635]
[1750461991355,0.6926123,103280.0,103270.0,0.1936486]
[1750461991560,0.6926123,103280.0,103270.0,1.47518496]
[1750461991746,0.6926123,103280.0,103270.0,1.50578496]
[1750461992144,0.6926123,103280.0,103270.0,1.51532578]
[1750461992560,0.6946123,103280.0,103270.0,1.51532578]
[1750461992854,0.6946123,103280.0,103270.0,1.50578496]
[1750461993757,0.43661594,103280.0,103270.0,1.50578496]
[1750461993952,0.6946123,103280.0,103270.0,1.50578496]
[1750461995359,0.6946123,103280.0,103270.0,1.51568392]
[1750461995564,0.43661594,103280.0,103270.0,1.51568392]
[1750461995756,0.6946123,103280.0,103270.0,1.51568392]
[1750461997256,0.43661594,103280.0,103270.0,1.87648392]
[1750461997452,0.6946123,103280.0,103270.0,1.87648392]
[1750462000761,0.6946123,103280.0,103270.0,1.61848756]
[1750462000959,0.6946123,103280.0,103270.0,1.87648392]
[1750462001463,0.6946123,103280.0,103270.0,1.61848756]
[1750462001665,0.6946123,103280.0,103270.0,1.87648392]
[1750462001963,0.6946123,103280.0,103270.0,2.01912392]
[1750462003358,0.72158401,103280.0,103270.0,2.01912392]
[1750462005168,0.72158401,103280.0,103270.0,1.29752392]
[1750462005368,0.72158401,103280.0,103270.0,2.01912392]
[1750462007458,0.46358765,103280.0,103270.0,2.01912392]
[1750462008262,0.02897171,103280.0,103270.0,2.01912392]
[1750462010269,0.03314578,103280.0,103270.0,2.01912392]
[1750462011261,0.08702298,103280.0,103270.0,2.01912392]
[1750462014170,0.09119705,103280.0,103270.0,2.01912392]
[1750462015171,0.09119705,103280.0,103270.0,1.76112756]
[1750462015372,0.09119705,103280.0,103270.0,2.01912392]
[1750462017777,0.09119705,103280.0,103270.0,1.76112756]
[1750462018075,0.09119705,103280.0,103270.0,2.01912392]
[1750462020076,0.09119705,103280.0,103270.0,1.76112756]
[1750462020276,0.09119705,103280.0,103270.0,2.01912392]